bitfinex/quotes_ETHUSD_20241003
["timestamp","ask_amount","ask_price","bid_price","bid_amount"]
[1727964184085,0.1155519,2359.1,2358.9,8.47852]
[1727964184286,0.1155519,2359.1,2358.9,4.23926]
[1727964184492,0.1155519,2359.1,2358.9,4.23915]
[1727964184688,0.1155519,2359.1,2358.7,4.2395]
[1727964184918,0.1155519,2359.1,2358.6,4.23979]
[1727964185441,0.1155519,2359.1,2358.8,4.23941]
[1727964185604,0.1155519,2359.1,2357.5,4.83385941]
[1727964185605,0.55,2359.0,2357.5,4.83385941]
[1727964185820,0.55,2359.0,2358.4,4.24011]
[1727964186140,4.3546019,2359.1,2357.7,0.55034594]
[1727964186141,3.55,2358.8,2357.7,0.55034594]
[1727964186328,3.55,2358.8,2357.3,4.24209]
[1727964186329,3.55,2358.8,2358.0,4.24085]
[1727964186639,0.7503,2358.9,2357.2,1.26177941]
[1727964186640,0.7503,2358.9,2357.5,4.24175]
[1727964186790,4.23979,2358.7,2358.0,4.24085]
[1727964187015,3.55,2358.8,2357.2,4.91185]
[1727964187016,3.55,2358.8,2358.2,4.24047]
[1727964187204,3.55,2358.8,2357.4,4.24178]
[1727964187205,0.55,2358.6,2358.0,8.48152]
[1727964187404,0.55,2358.6,2358.0,4.24072]
[1727964187607,0.55,2358.6,2357.2,0.6696]
[1727964187608,4.79028,2358.4,2356.9,1.26177941]
[1727964187806,3.0,2358.1,2357.0,4.24265]
[1727964188050,0.55,2358.2,2357.7,4.24124]
[1727964188237,3.8252,2358.3,2357.7,4.24124]
[1727964188432,3.8252,2358.3,2357.5,4.24167]
[1727964188433,8.06554,2358.3,2357.5,4.24167]
[1727964188676,0.55,2358.1,2357.1,0.491225]
[1727964188809,4.24134,2357.8,2357.0,4.24256]
[1727964189007,4.24134,2357.8,2356.8,4.24293]
[1727964189008,3.0,2357.5,2356.8,4.24293]
[1727964189234,4.24179,2357.5,2356.6,4.24332]
[1727964189423,4.24233,2357.2,2356.4,4.2436]
[1727964189650,3.8179,2356.9,2356.2,4.244]
[1727964189853,3.8179,2356.9,2355.4,9.59610197]
[1727964189854,3.0,2356.8,2355.4,10.26570197]
[1727964190156,0.55,2356.8,2356.1,4.24419]
[1727964190306,0.8179,2356.9,2356.1,4.24419]
[1727964190511,0.8179,2356.9,2356.3,4.24393]
[1727964190872,3.55,2356.6,2355.9,4.24454]
[1727964191158,0.7536,2356.3,2355.5,5.2718802]
[1727964191311,0.7536,2356.3,2355.2,0.4749242]
[1727964191312,3.7536,2356.3,2355.7,4.24484]
[1727964191809,3.7536,2356.3,2355.6,4.24506]
[1727964192019,7.99755,2356.3,2355.6,8.49016]
[1727964192274,7.99755,2356.3,2355.6,5.094076]
[1727964192586,7.2443,2356.1,2355.3,4.24574]
[1727964192859,3.0,2355.6,2354.8,8.49303]
[1727964193061,3.0,2355.6,2354.5,4.24713]
[1727964193062,3.0,2355.2,2354.5,4.24713]
[1727964193211,0.7677,2355.5,2354.2,4.24763]
[1727964193212,3.0,2354.9,2354.2,4.24763]
[1727964193418,7.24647,2354.9,2354.2,8.49525]
[1727964193727,7.24647,2354.9,2354.2,0.849525]
[1727964193728,4.24674,2354.8,2354.2,0.849525]
[1727964193921,7.24647,2354.9,2354.0,4.24791]
[1727964194120,0.55,2354.8,2354.2,4.24768]
[1727964194325,4.79671,2354.8,2354.2,4.24768]
[1727964194541,0.55,2354.8,2354.3,4.24754]
[1727964194923,7.24647,2354.9,2354.3,0.849522]
[1727964194924,0.55,2354.9,2354.3,0.849522]
[1727964195156,3.0,2354.8,2354.2,4.24758]
[1727964195386,3.0,2354.8,2353.5,0.6696]
[1727964195387,0.55,2354.9,2353.5,0.6696]
[1727964195679,3.0,2355.0,2354.6,4.24699]
[1727964195819,0.7677,2355.1,2354.6,0.849424]
[1727964196027,0.7677,2355.1,2354.7,4.24672]
[1727964196283,0.7677,2355.1,2354.6,5.096394]
[1727964196284,0.7677,2355.1,2354.8,4.24662]
[1727964196576,0.7677,2355.1,2354.6,4.24697]
[1727964196577,0.8228,2355.7,2355.1,4.24607]
[1727964196724,0.8228,2355.7,2355.4,4.24546]
[1727964196924,0.8228,2355.7,2355.2,8.49162]
[1727964197150,0.8228,2355.7,2355.1,0.849235]
[1727964197151,5.06782,2355.7,2355.1,5.095315]
[1727964197365,5.06782,2355.7,2355.1,4.24608]
[1727964197569,4.2454,2355.5,2354.5,4.24702]
[1727964197768,5.06788,2355.7,2354.3,0.6696]
[1727964197769,5.06791,2355.7,2354.7,4.24678]
[1727964197973,9.31308,2355.7,2355.0,4.24626]
[1727964198299,9.31308,2355.7,2354.8,4.671188]
[1727964198300,4.24538,2355.5,2354.9,4.24645]
[1727964198472,3.55,2355.6,2354.3,0.6696]
[1727964198473,7.24525,2355.6,2354.5,4.24712]
[1727964198631,4.24622,2355.1,2354.6,0.424712]
[1727964198834,1.3295,2355.6,2353.9,4.24824]
[1727964198835,4.2473,2354.5,2353.9,4.24824]
[1727964199077,0.7795,2354.4,2353.9,4.24824]
[1727964199224,3.7795,2354.4,2353.9,4.24825]
[1727964199429,0.7795,2354.4,2354.1,4.24789]
[1727964199627,0.7795,2354.4,2353.9,0.849677]
[1727964199831,0.7795,2354.4,2353.2,0.6696]
[1727964199832,3.0,2354.3,2353.8,4.24832]
[1727964200052,4.24783,2354.2,2353.6,4.2487]
[1727964200271,4.24783,2354.2,2353.6,8.4974]
[1727964200650,3.7795,2354.4,2353.2,0.6696]
[1727964200973,3.0,2354.2,2353.7,4.24849]
[1727964201182,3.7795,2354.4,2353.8,4.24829]
[1727964201382,0.7795,2354.4,2353.8,4.24834]
[1727964201674,3.7795,2354.4,2353.8,4.24834]
[1727964201874,0.7795,2354.4,2354.1,4.24785]
[1727964202134,0.8245,2355.0,2354.5,4.24717]
[1727964202284,0.8245,2355.0,2354.3,4.24743]
[1727964202476,4.24682,2354.7,2354.1,4.24776]
[1727964202724,4.24682,2354.7,2354.1,8.49557]
[1727964203046,4.24691,2354.7,2353.9,4.7154489]
[1727964203176,4.24754,2354.3,2353.7,4.24846]
[1727964203542,4.24597,2355.2,2353.2,0.6696]
[1727964203543,0.7765,2354.4,2354.1,4.2479]
[1727964203690,0.7765,2354.4,2353.7,4.24846]
[1727964203883,4.24773,2354.2,2353.5,4.24895]
[1727964204185,0.7765,2353.8,2352.9,0.6696]
[1727964204419,0.7765,2353.8,2353.7,4.24862]
[1727964204586,0.7765,2353.8,2353.5,4.24893]
[1727964204790,0.7765,2353.8,2352.5,0.6696]
[1727964205127,0.7765,2353.8,2353.0,4.24987]
[1727964205128,3.0,2353.5,2353.0,4.24987]
[1727964205352,4.24964,2353.2,2352.6,4.25044]
[1727964205629,4.24964,2353.2,2352.7,4.25043]
[1727964205867,0.7765,2353.4,2352.2,4.92086]
[1727964205868,0.7765,2353.4,2352.5,4.25079]
[1727964206174,0.7765,2353.4,2353.3,4.24935]
[1727964206466,0.7881,2353.8,2353.6,4.24881]
[1727964206680,0.7881,2354.5,2354.0,4.24793]
[1727964206821,0.7881,2354.5,2353.8,4.2483]
[1727964207161,0.7881,2354.5,2354.1,4.24777]
[1727964207319,0.7881,2354.5,2353.8,0.849681]
[1727964207522,0.7881,2354.5,2353.3,4.24917]
[1727964207523,5.03537,2354.5,2353.9,4.24814]
[1727964207742,4.24754,2354.4,2353.9,4.24814]
[1727964207941,5.03537,2354.5,2353.9,4.24814]
[1727964208149,4.24736,2354.4,2353.9,4.24814]
[1727964208422,0.7881,2354.5,2354.0,4.24794]
[1727964208729,3.7881,2354.5,2354.1,4.24781]
[1727964208933,0.7881,2354.5,2354.1,8.4955]
[1727964209145,0.7881,2354.5,2354.2,4.24758]
[1727964209460,0.7881,2354.5,2354.4,4.24736]
[1727964209828,0.7881,2354.5,2354.3,4.24741]
[1727964210169,0.7881,2354.5,2354.3,8.49481]
[1727964210461,0.7881,2354.5,2354.2,5.097241]
[1727964210622,5.03545,2354.5,2354.1,4.24786]
[1727964210821,5.03545,2354.5,2353.3,3.0]
[1727964210822,4.24738,2354.4,2353.9,4.24826]
[1727964211050,4.24757,2354.3,2353.7,4.2485]
[1727964211233,0.7881,2354.5,2353.2,0.6696]
[1727964211456,4.24799,2354.1,2353.5,4.24885]
[1727964211666,5.03529,2354.5,2352.5,4.25079]
[1727964211667,0.8308,2353.1,2352.5,4.25079]
[1727964211867,0.8308,2353.1,2352.0,0.6696]
[1727964212198,4.25045,2352.7,2352.2,4.25124]
[1727964212369,3.0,2352.7,2352.2,0.85028]
[1727964212564,3.0,2352.7,2351.7,4.92181]
[1727964212565,0.8308,2353.1,2352.3,4.25104]
[1727964212728,3.0,2352.7,2352.3,4.25104]
[1727964212921,0.8308,2353.1,2352.6,4.2505]
[1727964213124,0.8308,2353.1,2351.8,4.25202]
[1727964213125,0.8308,2353.1,2352.1,3.0]
[1727964213325,3.7562,2353.4,2353.0,4.24989]
[1727964213560,5.35060197,2354.3,2353.2,4.24953]
[1727964213561,4.24838,2353.9,2353.2,4.24953]
[1727964213777,4.24804,2354.1,2353.1,4.24965]
[1727964213778,0.7562,2353.8,2353.1,4.24965]
[1727964213937,0.7562,2353.8,2353.7,4.24862]
[1727964214142,0.7562,2353.8,2353.6,4.24871]
[1727964214448,0.7562,2353.8,2353.7,4.24862]
[1727964214838,0.7855,2354.2,2353.6,5.098449]
[1727964215046,0.7855,2354.2,2353.4,4.24906]
[1727964215219,0.7855,2354.2,2353.5,4.24886]
[1727964215220,4.24818,2354.0,2353.5,4.24886]
[1727964215420,0.7855,2353.8,2353.0,4.2498]
[1727964215674,4.24897,2353.6,2353.0,4.24971]
[1727964215828,4.24896,2353.6,2353.0,4.674681]
[1727964216187,4.24896,2353.6,2352.2,4.25117]
[1727964216188,0.7825,2353.2,2352.5,4.25067]
[1727964216329,0.7825,2353.2,2352.3,0.6696]
[1727964216667,4.24902,2353.5,2352.9,4.24995]
[1727964216868,4.24997,2353.0,2352.5,4.25069]
[1727964217027,3.0,2353.3,2352.4,4.25086]
[1727964217028,9.25859,2352.9,2352.4,4.25086]
[1727964217348,9.25859,2352.9,2352.1,4.25141]
[1727964217349,4.2507,2352.6,2352.1,4.25141]
[1727964217524,0.7582,2352.9,2351.7,0.6696]
[1727964217525,5.35060197,2352.8,2351.7,0.6696]
[1727964217722,5.35060197,2352.8,2352.0,4.25157]
[1727964217723,0.8228,2352.4,2352.0,4.25157]
[1727964217968,0.8228,2352.4,2351.8,4.25192]
[1727964218176,0.8228,2352.4,2351.7,4.25224]
[1727964218177,4.25127,2352.3,2351.7,4.25224]
[1727964218390,3.7745,2352.0,2351.0,0.6696]
[1727964218663,3.7745,2352.0,2351.3,4.25296]
[1727964218882,4.25194,2351.9,2351.1,4.25322]
[1727964219048,4.25194,2351.9,2351.3,4.25286]
[1727964219408,4.25233,2351.7,2351.1,8.931762]
[1727964219526,4.25233,2351.7,2351.1,4.25322]
[1727964219722,4.25199,2351.9,2351.3,4.25286]
[1727964220081,4.25199,2351.9,2350.8,4.25384]
[1727964220082,4.25225,2351.7,2351.2,4.25312]
[1727964220227,4.25225,2351.7,2351.1,4.25316]
[1727964220563,0.7745,2352.0,2350.9,0.492344]
[1727964220766,0.782,2352.3,2351.7,4.25212]
[1727964220999,0.782,2352.3,2351.4,0.6696]
[1727964221202,0.782,2352.3,2351.9,4.25177]
[1727964221371,0.782,2352.3,2351.8,4.25196]
[1727964221573,0.782,2352.3,2351.5,4.25258]
[1727964221756,0.782,2352.3,2351.7,4.2522]
[1727964221957,5.03327,2352.3,2351.7,4.25213]
[1727964222359,5.03327,2352.3,2351.5,4.25246]
[1727964222360,4.25135,2352.2,2351.5,4.25246]
[1727964222579,0.782,2352.3,2351.5,0.91749]
[1727964222751,0.782,2352.3,2351.1,3.6696]
[1727964222968,0.782,2352.3,2351.9,4.25177]
[1727964223315,0.782,2352.3,2351.8,4.25205]
[1727964223600,0.782,2352.3,2351.3,4.25285]
[1727964223601,0.782,2352.3,2352.2,4.25133]
[1727964223755,0.7647,2352.7,2352.2,9.352722]
[1727964223954,0.7647,2352.7,2351.8,4.92151]
[1727964224212,0.7647,2352.7,2351.7,4.25214]
[1727964224213,0.7647,2352.2,2351.7,4.25214]
[1727964224903,0.7647,2352.2,2351.7,4.25211]
[1727964225055,0.7647,2352.2,2351.9,8.50367]
[1727964225261,4.25086,2352.5,2351.9,8.50367]
[1727964225262,0.7794,2352.5,2352.1,4.25151]
[1727964225495,3.0,2352.4,2351.9,4.25175]
[1727964225662,5.03029,2352.5,2351.9,5.102134]
[1727964225663,0.7794,2352.5,2351.9,5.102134]
[1727964225861,4.25099,2352.4,2351.9,4.25175]
[1727964226275,0.7794,2352.5,2352.0,4.25168]
[1727964226479,4.251,2352.4,2351.9,4.25175]
[1727964226681,0.7794,2352.5,2352.2,4.25125]
[1727964227001,5.03021,2352.5,2351.9,4.25175]
[1727964227161,5.03021,2352.5,2351.5,4.2525]
[1727964227162,3.0,2352.4,2352.2,4.25131]
[1727964227359,0.7794,2352.5,2351.8,4.2519]
[1727964227558,3.0,2352.4,2352.0,4.25161]
[1727964227807,0.7794,2352.5,2351.8,0.42519]
[1727964228012,0.7794,2352.5,2352.3,4.25101]
[1727964228386,0.8053,2352.9,2352.4,4.25086]
[1727964228550,0.8053,2352.9,2352.3,4.25113]
[1727964228551,0.8053,2352.9,2352.5,4.25078]
[1727964228699,0.8053,2352.9,2352.3,4.25113]
[1727964228700,5.05538,2352.9,2352.4,4.25096]
[1727964228899,5.05538,2352.9,2352.3,4.25113]
[1727964229209,5.05538,2352.9,2351.9,4.25177]
[1727964229210,0.8236,2352.4,2351.9,4.25177]
[1727964229547,0.8236,2352.4,2352.0,4.25154]
[1727964229696,0.8236,2352.4,2352.1,4.25142]
[1727964230131,0.8236,2352.4,2352.0,4.25169]
[1727964230503,0.8236,2352.4,2352.3,4.25115]
[1727964230704,0.789,2352.8,2352.0,0.425169]
[1727964230918,0.789,2352.8,2352.5,4.2507]
[1727964231139,0.789,2352.8,2352.3,4.25099]
[1727964231697,5.03937,2352.8,2352.2,4.25131]
[1727964231901,4.25069,2352.6,2352.0,4.25162]
[1727964232109,4.25069,2352.6,2351.6,4.25234]
[1727964232110,0.8236,2352.3,2351.7,4.25211]
[1727964232435,4.25143,2352.2,2351.6,1.3272962]
[1727964232611,0.7707,2351.6,2351.1,4.25331]
[1727964232810,0.7707,2351.6,2351.1,4.25322]
[1727964233009,5.02315,2351.6,2350.9,0.492344]
[1727964233246,5.02315,2351.6,2350.8,4.25372]
[1727964233247,4.25293,2351.4,2350.8,4.25372]
[1727964236315,5.07897,2352.4,2351.9,4.25185]
[1727964236555,5.07897,2352.4,2351.4,4.25268]
[1727964236712,4.25033,2352.8,2352.3,4.25102]
[1727964236912,5.35060197,2353.4,2351.5,5.347358]
[1727964237156,4.25089,2352.5,2351.8,4.25201]
[1727964237339,4.25081,2352.5,2351.9,4.25174]
[1727964237658,5.00398,2352.7,2351.5,1.094868]
[1727964237659,5.00398,2352.7,2352.2,4.25132]
[1727964237859,5.00398,2352.7,2352.1,4.2514]
[1727964238017,3.7534,2352.7,2352.2,4.25116]
[1727964238221,3.7534,2352.7,2352.0,4.25159]
[1727964238222,4.25094,2352.5,2352.0,4.25159]
[1727964238417,4.25066,2352.6,2352.1,4.2515]
[1727964238616,0.7534,2352.7,2352.2,4.25122]
[1727964238835,0.7534,2352.7,2352.5,4.25064]
[1727964239046,0.8072,2353.0,2352.2,4.25122]
[1727964239260,0.8072,2353.0,2352.5,4.25079]
[1727964239436,4.25019,2352.9,2352.4,4.25096]
[1727964239661,4.25062,2352.6,2352.1,4.25142]
[1727964239861,0.8072,2353.0,2352.1,5.1442539]
[1727964240051,4.25062,2352.6,2352.1,4.25142]
[1727964240388,4.25018,2352.9,2352.0,0.425159]
[1727964240591,3.8072,2353.0,2352.6,4.25049]
[1727964240798,4.24906,2353.5,2353.0,4.24983]
[1727964240950,4.24936,2353.3,2352.8,4.25015]
[1727964241151,0.8215,2353.1,2352.5,4.25067]
[1727964241379,4.25052,2352.7,2352.2,4.2513]
[1727964241646,4.25144,2352.2,2351.7,4.25223]
[1727964241848,4.25135,2352.2,2351.5,0.425268]
[1727964242047,7.25126,2352.3,2351.7,4.2521]
[1727964242247,3.0,2352.3,2351.9,4.25179]
[1727964242475,7.25129,2352.3,2351.7,4.25208]
[1727964242678,0.55,2352.5,2351.5,4.2525]
[1727964242859,0.8183,2351.9,2351.5,4.2525]
[1727964243077,0.8183,2351.9,2351.3,0.6696]
[1727964243297,3.8107,2352.3,2351.9,4.25178]
[1727964243649,5.01875,2352.7,2352.2,4.25133]
[1727964243851,0.7683,2352.7,2351.9,0.850384]
[1727964244056,0.7683,2352.7,2352.3,4.25107]
[1727964244285,0.7683,2352.7,2352.2,4.25132]
[1727964244492,5.01873,2352.7,2352.2,8.50253]
[1727964244697,5.01873,2352.7,2352.2,9.419653]
[1727964244863,0.7683,2352.7,2352.2,9.419653]
[1727964245187,0.7519,2353.0,2352.2,0.917213]
[1727964245392,0.7519,2353.0,2352.7,4.2503]
[1727964245597,4.24918,2353.4,2352.9,4.24999]
[1727964245809,0.769,2353.8,2353.2,4.2494]
[1727964246166,0.769,2353.8,2353.0,0.424999]
[1727964246365,4.24908,2353.5,2353.0,4.24988]
[1727964246567,4.24893,2353.6,2352.9,4.25]
[1727964246968,0.769,2353.8,2352.6,8.35060197]
[1727964247170,0.769,2353.8,2353.4,4.24907]
[1727964247365,0.769,2353.8,2353.0,4.24988]
[1727964247366,0.769,2353.8,2353.0,4.24983]
[1727964247581,11.96447493,2353.9,2353.5,4.24882]
[1727964248167,11.96447493,2353.9,2353.6,4.24872]
[1727964248605,11.96447493,2353.9,2353.8,4.24844]
[1727964249605,0.7987,2355.5,2355.0,4.24627]
[1727964249814,5.04349,2355.9,2355.3,4.24573]
[1727964249967,1.19644332,2355.9,2354.7,0.6696]
[1727964250315,4.24493,2355.8,2355.2,4.2459]
[1727964250455,0.7987,2355.9,2355.0,4.24615]
[1727964250805,0.7987,2355.9,2354.8,4.24655]
[1727964250969,4.24512,2355.7,2354.8,4.24655]
[1727964251170,4.24512,2355.7,2354.8,4.738165]
[1727964251385,4.24556,2355.5,2354.9,4.24635]
[1727964251602,4.24556,2355.5,2354.8,4.738135]
[1727964251761,4.24514,2355.7,2354.9,0.02866149]
[1727964252110,4.24512,2355.7,2355.1,4.24609]
[1727964252273,4.24512,2355.7,2354.9,0.02865872]
[1727964252274,4.24548,2355.5,2354.9,4.24644]
[1727964252458,4.24513,2355.7,2355.1,4.24599]
[1727964252659,4.24557,2355.4,2354.9,4.24636]
[1727964252857,4.24531,2355.6,2355.0,4.24626]
[1727964253099,0.7987,2355.9,2354.8,4.24646]
[1727964253316,4.24597,2355.2,2354.4,0.6696]
[1727964253519,4.24708,2354.6,2354.0,4.91759]
[1727964253662,4.24612,2355.1,2353.6,5.35060197]
[1727964253663,5.06161,2354.5,2353.8,4.24836]
[1727964253865,5.06161,2354.5,2353.6,4.91827]
[1727964253866,4.24785,2354.2,2353.5,4.673702]
[1727964254091,0.8144,2354.5,2353.6,0.4673702]
[1727964254092,4.24801,2354.1,2353.6,0.4673702]
[1727964254302,4.24743,2354.4,2353.3,4.24922]
[1727964254613,0.7538,2353.8,2353.0,4.24976]
[1727964254819,0.7538,2353.8,2353.1,4.24959]
[1727964255099,0.7538,2353.8,2352.8,0.6696]
[1727964255100,0.7538,2353.8,2353.5,4.24896]
[1727964255283,0.8056,2354.2,2353.8,4.24833]
[1727964255488,3.0,2354.4,2353.9,4.24823]
[1727964255654,3.0,2354.4,2353.8,4.24833]
[1727964255655,0.8056,2354.5,2353.5,0.6696]
[1727964255858,0.8056,2354.5,2353.9,4.2481]
[1727964256062,4.24782,2354.2,2353.5,4.91846]
[1727964256261,8.49569,2354.2,2353.6,4.24877]
[1727964256462,4.24782,2354.2,2353.6,0.849763]
[1727964256706,4.24811,2354.0,2353.5,8.49774]
[1727964257014,7.24769,2354.3,2353.2,4.674419]
[1727964257179,4.24781,2354.2,2353.6,8.4974]
[1727964257517,4.24919,2353.4,2352.8,4.25021]
[1727964257660,4.24919,2353.4,2352.7,0.9020202]
[1727964257661,4.24954,2353.2,2352.7,5.1523602]
[1727964257864,4.24892,2353.6,2352.9,4.25003]
[1727964258099,0.8097,2353.8,2352.8,4.76536602]
[1727964258468,4.24955,2353.2,2352.7,4.25027]
[1727964258614,4.24892,2353.6,2353.0,4.24985]
[1727964258985,0.8097,2353.8,2352.9,3.0]
[1727964259192,5.01476,2354.3,2353.8,4.24834]
[1727964259542,0.7672,2354.3,2353.8,4.32317735]
[1727964259683,0.7672,2354.3,2354.1,4.2479]
[1727964259884,5.0142,2354.6,2354.1,4.2479]
[1727964260087,4.24718,2354.5,2354.0,4.24798]
[1727964260300,5.01421,2354.6,2354.1,4.24789]
[1727964260788,0.7672,2354.6,2354.1,5.09749]
[1727964260989,5.01426,2354.6,2354.1,4.24789]
[1727964261185,0.7672,2354.6,2354.2,4.24763]
[1727964261492,5.01421,2354.6,2353.9,8.4963]
[1727964261698,5.01421,2354.6,2354.1,4.24788]
[1727964262134,5.01421,2354.6,2353.5,3.6696]
[1727964262135,4.24719,2354.5,2353.9,4.2481]
[1727964262335,4.24557,2355.4,2354.1,4.24774]
[1727964262336,4.24697,2354.7,2354.1,4.24774]
[1727964262532,4.247,2354.6,2353.9,4.24813]
[1727964262846,4.24699,2354.7,2354.1,4.24778]
[1727964263017,0.7839,2354.9,2353.9,4.24808]
[1727964263018,4.24756,2354.3,2353.9,4.24808]
[1727964263201,4.24703,2354.6,2354.1,4.2478]
[1727964263400,4.24665,2354.8,2354.1,4.67256]
[1727964263699,4.24721,2354.5,2353.8,4.2484]
[1727964263935,4.24721,2354.5,2353.5,10.26909197]
[1727964263936,4.24721,2354.5,2353.6,4.24866]
[1727964264262,4.24674,2354.8,2353.3,5.0843202]
[1727964264263,0.7828,2354.2,2353.3,0.8350602]
[1727964264405,4.24863,2353.7,2353.2,4.2494]
[1727964264602,8.49741,2353.7,2353.2,4.2494]
[1727964264803,4.24805,2354.1,2353.0,0.3]
[1727964265038,0.7828,2354.2,2352.9,4.24999]
[1727964265039,4.24812,2354.0,2352.9,4.24999]
[1727964265239,0.7828,2354.2,2353.4,4.24904]
[1727964265448,4.24854,2353.8,2353.3,4.24921]
[1727964265614,4.24854,2353.8,2353.2,4.2494]
[1727964265821,4.24854,2353.8,2353.4,4.24915]
[1727964266020,0.7828,2354.2,2353.2,0.42494]
[1727964266228,4.24806,2354.1,2353.1,9.60028197]
[1727964266406,4.24866,2353.7,2353.2,4.24944]
[1727964266607,0.8056,2353.6,2353.0,4.24971]
[1727964266808,4.24907,2353.5,2353.0,4.24971]
[1727964267242,0.8056,2353.6,2352.8,0.6696]
[1727964267463,0.8056,2353.6,2353.2,4.24939]
[1727964267625,5.05444,2353.6,2353.1,8.49917]
[1727964267822,4.24903,2353.5,2353.1,4.24956]
[1727964268142,0.8056,2353.6,2353.1,4.24956]
[1727964268143,5.05443,2353.6,2353.1,4.24956]
[1727964268346,5.05443,2353.6,2352.9,4.2499]
[1727964268561,0.8056,2353.6,2353.0,4.24989]
[1727964268708,0.8056,2353.6,2352.9,0.42499]
[1727964268709,0.8202,2354.0,2352.9,0.42499]
[1727964268909,0.8202,2354.0,2352.0,0.4258]
[1727964268910,0.8202,2354.6,2353.4,4.24914]
[1727964269148,4.24766,2354.3,2353.7,4.24851]
[1727964269361,4.24795,2354.1,2353.7,4.24851]
[1727964269565,4.24755,2354.3,2353.8,4.24828]
[1727964269772,0.8202,2354.6,2354.3,4.24739]
[1727964270059,0.8202,2354.6,2354.4,4.24734]
[1727964270231,5.06722,2354.6,2354.1,4.24779]
[1727964270568,5.06722,2354.6,2354.3,4.24752]
[1727964270569,0.8202,2354.6,2354.3,4.24752]
[1727964270715,4.24676,2354.8,2354.3,4.24754]
[1727964270919,5.04401,2355.0,2354.6,8.49386]
[1727964270920,0.7976,2355.0,2354.6,8.49386]
[1727964271225,0.7976,2355.0,2354.7,4.24678]
[1727964271540,0.7976,2355.0,2354.2,0.424779]
[1727964271741,0.7976,2355.0,2354.6,4.24683]
[1727964271917,5.89313383,2355.4,2354.8,4.24663]
[1727964272121,1.64757383,2355.4,2354.9,4.24634]
[1727964272315,1.64757383,2355.4,2354.8,4.24655]
[1727964272316,4.24583,2355.3,2354.8,4.24655]
[1727964272626,1.64757383,2355.4,2354.8,4.24655]
[1727964272830,7.24577,2355.3,2354.8,4.24655]
[1727964273024,7.24577,2355.3,2354.8,8.4931]
[1727964273358,7.24582,2355.3,2354.8,4.24655]
[1727964273657,4.24582,2355.3,2354.9,4.24644]
[1727964273830,5.89323383,2355.4,2354.9,4.24635]
[1727964274167,5.01016,2355.4,2354.8,4.24655]
[1727964274314,5.73196691,2355.4,2354.8,4.24655]
[1727964274519,4.24592,2355.2,2354.8,4.24655]
[1727964274961,1.48630691,2355.4,2354.4,4.24721]
[1727964275262,1.48630691,2355.4,2354.2,1.094379]
[1727964275263,4.24708,2354.6,2354.2,4.24761]
[1727964275481,0.788,2354.7,2353.9,0.6696]
[1727964275623,0.788,2354.7,2354.5,4.24714]
[1727964275989,5.03492,2354.7,2354.2,4.2476]
[1727964276119,4.24702,2354.6,2354.2,4.2476]
[1727964276455,4.24708,2354.6,2354.1,4.24788]
[1727964276662,9.2819,2354.7,2354.2,4.24765]
[1727964276867,0.9282,2354.6,2353.5,4.24888]
[1727964277072,0.7679,2353.6,2353.1,4.24958]
[1727964277250,0.7679,2353.6,2353.3,4.2492]
[1727964277415,0.7679,2353.6,2353.1,4.24957]
[1727964277617,4.24845,2353.8,2352.8,0.6696]
[1727964277618,0.8077,2354.1,2353.5,4.24899]
[1727964277920,5.0552,2354.4,2353.9,4.24811]
[1727964278119,5.0552,2354.4,2353.5,4.91853]
[1727964278120,0.8077,2354.4,2354.1,4.24776]
[1727964278363,0.8077,2354.4,2354.2,4.24761]
[1727964278567,0.7562,2354.7,2354.4,4.24734]
[1727964278863,5.00314,2354.7,2354.0,8.49589]
[1727964279073,5.00312,2354.7,2354.1,5.097319]
[1727964279366,5.00312,2354.7,2354.1,4.24773]
[1727964279516,0.7562,2354.7,2354.3,4.24746]
[1727964280218,0.7562,2354.7,2354.1,4.2478]
[1727964280544,5.00313,2354.7,2354.0,4.24793]
[1727964280746,0.7562,2354.7,2353.6,3.0]
[1727964281062,0.88307383,2354.9,2353.4,4.249]
[1727964281063,0.7554,2354.0,2353.4,4.249]
[1727964281263,5.00356,2354.0,2353.5,4.24891]
[1727964281436,4.24838,2353.9,2353.5,0.424891]
[1727964281641,4.24838,2353.9,2353.4,4.24916]
[1727964281874,4.24838,2353.9,2353.5,4.24896]
[1727964282031,0.7554,2354.0,2353.6,4.2488]
[1727964282234,3.0,2354.2,2353.9,4.24826]
[1727964282437,0.7777,2354.4,2354.0,4.24796]
[1727964282676,0.7777,2354.4,2354.1,4.24787]
[1727964283034,0.7777,2354.4,2354.0,4.24806]
[1727964283268,0.7777,2354.4,2354.2,4.24756]
[1727964283429,5.89135383,2354.7,2354.2,4.24756]
[1727964283631,5.89135383,2354.7,2354.0,4.24792]
[1727964283872,2.84259111,2354.7,2353.8,1.094459]
[1727964284072,4.24753,2354.4,2353.9,4.2481]
[1727964284441,4.24753,2354.4,2353.4,0.6696]
[1727964284442,4.24774,2354.2,2353.8,4.24835]
[1727964284800,4.24836,2353.9,2353.3,4.24922]
[1727964284968,4.2482,2354.0,2353.5,4.24885]
[1727964285292,0.8073,2354.1,2353.6,4.24868]
[1727964285493,5.05532,2354.1,2353.6,4.24868]
[1727964285864,0.8073,2354.1,2353.7,0.02483117]
[1727964286201,4.24762,2354.3,2353.9,4.24825]
[1727964286361,4.24781,2354.2,2353.6,4.24866]